bitfinex/quotes_SOLUSD_20250721
["timestamp","ask_amount","ask_price","bid_price","bid_amount"]
[1753061693356,5.75689112,178.95,178.94,0.1]
[1753061693970,6.47689112,178.95,178.94,0.1]
[1753061694268,28.8497282,178.95,178.94,0.1]
[1753061694467,23.26157509,178.95,178.94,0.1]
[1753061694655,22.54157509,178.95,178.94,0.1]
[1753061694864,23.26157509,178.95,178.94,0.1]
[1753061695176,26.0,178.92,178.84,6.3992]
[1753061695339,26.0,178.88,178.79,6.6036]
[1753061695665,0.72,178.87,178.8,0.72]
[1753061695837,5.75689112,178.84,178.79,8.2565]
[1753061696041,0.72,178.87,178.79,8.2565]
[1753061696042,26.72,178.83,178.79,8.2565]
[1753061696246,6.310965,178.86,178.79,8.2565]
[1753061696437,5.75689112,178.8,178.76,0.72]
[1753061696640,5.75689112,178.77,178.75,6.6036]
[1753061696869,5.75689112,178.76,178.75,6.6036]
[1753061697255,11.51378224,178.76,178.72,0.72]
[1753061697434,5.75689112,178.73,178.69,42.4]
[1753061697639,0.72,178.83,178.72,26.0]
[1753061697834,5.75689112,178.76,178.73,0.72]
[1753061698076,0.72,178.83,178.73,0.72]
[1753061698245,5.75689112,178.75,178.73,0.72]
[1753061698640,26.0,178.8,178.74,0.72]
[1753061698838,11.51378224,178.75,178.71,0.72]
[1753061699078,5.75689112,178.72,178.69,0.72]
[1753061699368,5.75689112,178.7,178.69,0.72]
[1753061699569,5.75689112,178.7,178.67,55.65537525]
[1753061699570,16.78468397,178.77,178.67,55.65537525]
[1753061699754,0.72,178.73,178.67,55.65537525]
[1753061699950,5.75689112,178.68,178.67,55.65537525]
[1753061700259,26.0,178.8,178.7,26.0]
[1753061700260,0.72,178.77,178.7,26.0]
[1753061700569,0.72,178.82,178.73,5.75689112]
[1753061700771,5.75689112,178.8,178.74,49.29689112]
[1753061700950,0.72,178.82,178.75,5.75689112]
[1753061701265,0.69,178.84,178.77,26.0]
[1753061701470,0.69,178.84,178.74,0.72]
[1753061701659,0.69,178.84,178.75,42.92]
[1753061701842,26.0,178.8,178.67,13.87537525]
[1753061702045,5.75689112,178.74,178.68,0.72]
[1753061702239,16.78468397,178.78,178.69,5.59628406]
[1753061702458,5.75689112,178.75,178.72,26.0]
[1753061702654,5.75689112,178.75,178.72,26.72]
[1753061702847,5.75689112,178.76,178.72,70.06]
[1753061703250,5.75689112,178.73,178.72,43.34]
[1753061703449,5.75689112,178.74,178.72,43.34]
[1753061703647,5.75689112,178.75,178.72,43.34]
[1753061703864,26.0,178.81,178.69,26.75]
[1753061703865,5.75689112,178.73,178.69,0.03]
[1753061704070,5.75689112,178.7,178.69,0.03]
[1753061704460,23.23157509,178.7,178.69,0.03]
[1753061705977,28.82754599,178.7,178.69,0.03]
[1753061706162,42.78468397,178.68,178.67,6.67277525]
[1753061706348,22.38159447,178.67,178.57,43.36]
[1753061706558,5.75689112,178.58,178.5,0.72]
[1753061706860,48.54157509,178.64,178.5,0.72]
[1753061706861,5.75689112,178.54,178.5,43.36]
[1753061707068,5.75689112,178.53,178.5,43.36]
[1753061707281,5.75689112,178.53,178.49,6.1061]
[1753061707454,16.78468397,178.6,178.49,49.4661]
[1753061707655,0.69,178.55,178.49,6.1061]
[1753061707859,0.69,178.55,178.48,1.5378]
[1753061708256,0.69,178.55,178.48,7.14063423]
[1753061708457,0.69,178.55,178.48,12.89752535]
[1753061708656,5.75689112,178.53,178.48,12.89752535]
[1753061708853,0.69,178.55,178.49,0.72]
[1753061708854,5.75689112,178.52,178.49,0.72]
[1753061709053,5.75689112,178.51,178.48,1.5378]
[1753061709361,8.07319275,178.51,178.48,1.5378]
[1753061709975,8.07319275,178.51,178.44,0.72]
[1753061709976,8.07319275,178.49,178.44,0.72]
[1753061710179,0.69,178.51,178.44,0.72]
[1753061710567,8.07319275,178.47,178.43,43.38]
[1753061710757,8.07319275,178.48,178.44,0.72]
[1753061710948,10.0,178.62,178.47,8.07319275]
[1753061711270,8.07319275,178.52,178.48,0.72]
[1753061711462,8.07319275,178.52,178.48,44.08]
[1753061711666,8.07319275,178.53,178.49,0.72]
[1753061712285,0.69,178.61,178.52,8.07319275]
[1753061712478,0.69,178.61,178.54,13.67417852]
[1753061712479,8.07319275,178.59,178.54,13.67417852]
[1753061712673,8.07319275,178.58,178.54,43.34]
[1753061712872,8.07319275,178.58,178.54,44.06]
[1753061713056,0.69,178.61,178.54,44.06]
[1753061713254,0.69,178.64,178.54,43.34]
[1753061713596,8.07319275,178.62,178.57,8.07319275]
[1753061713759,8.07319275,178.63,178.58,8.79319275]
[1753061713959,8.07319275,178.61,178.59,43.32]
[1753061714477,8.07319275,178.6,178.5,6.1307]
[1753061714677,8.07319275,178.54,178.5,6.8507]
[1753061714988,8.07319275,178.54,178.51,43.3]
[1753061715157,8.07319275,178.55,178.51,43.3]
[1753061715358,0.69,178.57,178.51,43.3]
[1753061715684,8.07319275,178.55,178.51,44.02]
[1753061715859,8.07319275,178.52,178.49,44.8016]
[1753061716069,8.07319275,178.52,178.49,45.5216]
[1753061716365,8.07319275,178.58,178.52,26.0]
[1753061716598,8.07319275,178.57,178.53,43.28]
[1753061717080,16.78468397,178.64,178.56,8.07319275]
[1753061717081,0.69,178.64,178.56,8.07319275]
[1753061717383,8.07319275,178.61,178.56,0.72]
[1753061717587,8.07319275,178.6,178.56,0.72]
[1753061717797,8.07319275,178.6,178.54,8.07319275]
[1753061718157,8.07319275,178.58,178.55,43.24]
[1753061718462,39.669848,178.68,178.51,43.24]
[1753061718463,8.07319275,178.56,178.51,43.24]
[1753061718784,8.07319275,178.54,178.51,43.24]
[1753061718961,8.07319275,178.54,178.5,0.72]
[1753061719163,8.07319275,178.54,178.52,43.22]
[1753061719397,8.07319275,178.56,178.53,0.72]
[1753061719594,8.07319275,178.56,178.5,13.67536452]
[1753061719797,8.07319275,178.55,178.51,43.2]
[1753061720101,0.69,178.59,178.52,0.72]
[1753061720259,16.78468397,178.61,178.52,8.79319275]
[1753061720458,8.07319275,178.57,178.52,14.3947505]
[1753061720680,8.07319275,178.57,178.52,6.32155775]
[1753061721620,8.07319275,178.59,178.54,8.07319275]
[1753061721817,16.78468397,178.62,178.53,0.72]
[1753061721993,8.07319275,178.55,178.54,43.16]
[1753061722195,8.07319275,178.55,178.49,7.82384093]
[1753061722522,26.0,178.64,178.49,7.82384093]
[1753061722523,26.69,178.64,178.54,8.07319275]
[1753061722683,8.07319275,178.62,178.56,8.07319275]
[1753061722880,8.07319275,178.63,178.57,8.79319275]
[1753061723078,8.07319275,178.62,178.57,0.72]
[1753061723277,8.07319275,178.63,178.58,8.07319275]
[1753061723503,0.69,178.67,178.59,8.79319275]
[1753061723708,8.07319275,178.65,178.6,52.33319275]
[1753061723919,8.07319275,178.65,178.61,0.72]
[1753061724214,8.07319275,178.66,178.61,8.79319275]
[1753061724389,8.07319275,178.64,178.6,43.54]
[1753061724911,8.07319275,178.63,178.61,43.54]
[1753061725106,8.76319275,178.62,178.53,0.72]
[1753061725296,0.69,178.62,178.55,69.54]
[1753061725497,8.07319275,178.6,178.55,69.54]
[1753061725981,8.07319275,178.6,178.56,0.72]
[1753061726187,8.07319275,178.61,178.56,49.82006493]
[1753061726387,8.07319275,178.6,178.56,43.5]
[1753061726891,8.07319275,178.57,178.52,0.03]
[1753061727095,8.07319275,178.56,178.53,43.46]
[1753061727398,8.07319275,178.54,178.53,43.46]
[1753061727621,8.76319275,178.54,178.52,43.49]
[1753061727799,8.76319275,178.53,178.52,43.49]
[1753061728121,8.07319275,178.54,178.52,43.49]
[1753061728416,8.07319275,178.55,178.52,43.49]
[1753061729004,8.07319275,178.54,178.52,43.49]
[1753061730310,8.76319275,178.53,178.52,0.03]
[1753061732586,0.69,178.53,178.52,0.03]
[1753061732817,8.76319275,178.53,178.52,0.03]
[1753061733617,16.78468397,178.54,178.52,0.03]
[1753061733790,8.78319275,178.53,178.52,0.03]
[1753061733994,0.71,178.53,178.52,0.03]
[1753061734194,8.78319275,178.53,178.52,0.03]
[1753061734401,25.56787672,178.53,178.52,0.03]
[1753061734613,31.16917622,178.53,178.52,0.03]
[1753061734925,25.56787672,178.53,178.52,0.03]
[1753061738631,8.07319275,178.53,178.52,0.03]
[1753061738839,8.78319275,178.53,178.52,0.03]
[1753061740622,14.38449225,178.53,178.52,0.03]
[1753061740999,14.38449225,178.53,178.44,0.03]
[1753061741202,16.78468397,178.51,178.44,0.03]
[1753061741428,5.79940357,178.46,178.44,0.03]
[1753061741594,0.71,178.5,178.44,0.68]
[1753061741794,5.79940357,178.48,178.44,0.68]
[1753061742036,16.78468397,178.52,178.45,0.65]
[1753061742235,0.71,178.53,178.45,6.44940357]
[1753061742522,5.79940357,178.53,178.48,5.60286866]
[1753061742731,5.79940357,178.52,178.49,0.65]
[1753061742895,5.79940357,178.53,178.5,0.65]
[1753061743100,5.79940357,178.55,178.51,0.65]
[1753061743339,5.79940357,178.55,178.52,0.65]
[1753061743968,5.79940357,178.54,178.52,0.65]
[1753061744118,5.79940357,178.53,178.49,0.65]
[1753061744441,5.79940357,178.54,178.49,6.44940357]
[1753061744745,0.71,178.58,178.5,0.65]
[1753061744913,0.71,178.58,178.5,6.2521855]
[1753061745113,5.79940357,178.56,178.51,6.6892]
[1753061745337,5.79940357,178.56,178.52,0.65]
[1753061745513,5.79940357,178.56,178.53,0.65]
[1753061745733,16.78468397,178.6,178.51,6.0392]
[1753061745932,5.79940357,178.56,178.51,6.0392]
[1753061746131,5.79940357,178.56,178.51,11.83860357]
[1753061746943,5.79940357,178.58,178.52,1.5493]
[1753061747219,5.79940357,178.56,178.52,1.5493]
[1753061747419,16.78468397,178.61,178.53,5.79940357]
[1753061747646,5.79940357,178.58,178.53,5.79940357]
[1753061748157,5.79940357,178.59,178.54,5.79940357]
[1753061748868,16.78468397,178.63,178.53,11.40070307]
[1753061749379,5.79940357,178.59,178.53,11.40070307]
[1753061750067,16.78468397,178.63,178.53,11.40070307]
[1753061750068,5.79940357,178.6,178.55,5.79940357]
[1753061750634,16.78468397,178.66,178.56,5.79940357]
[1753061750861,5.79940357,178.62,178.58,5.59973121]
[1753061751083,0.06,178.67,178.58,5.59973121]
[1753061751280,0.06,178.67,178.58,11.39913478]
[1753061751484,0.06,178.67,178.59,5.79940357]
[1753061751485,5.79940357,178.64,178.59,5.79940357]
[1753061751657,0.06,178.67,178.59,5.79940357]
[1753061751995,5.79940357,178.63,178.58,11.39913478]
[1753061752162,5.79940357,178.65,178.59,5.79940357]
[1753061752556,5.85940357,178.67,178.61,5.79940357]
[1753061752858,5.85940357,178.67,178.62,42.98]
[1753061753173,5.79940357,178.65,178.6,50.4749]
[1753061753499,5.79940357,178.65,178.6,56.27430357]
[1753061753999,5.79940357,178.65,178.6,61.87337341]
[1753061754167,5.85940357,178.67,178.62,5.79940357]
[1753061754681,5.79940357,178.64,178.6,50.4749]
[1753061755374,5.79940357,178.63,178.6,50.4749]
[1753061755571,5.79940357,178.63,178.6,50.4349]
[1753061755984,5.79940357,178.61,178.56,6.0387]
[1753061756304,5.79940357,178.58,178.56,6.0387]
[1753061756600,5.79940357,178.57,178.55,1.592]
[1753061757683,5.79940357,178.56,178.53,42.94]
[1753061758258,5.59852559,178.62,178.53,42.9]
[1753061758458,5.79940357,178.57,178.53,42.9]
[1753061758692,5.79940357,178.56,178.53,42.9]
[1753061759294,5.79940357,178.57,178.53,42.9]
[1753061760194,5.59786494,178.64,178.53,48.69940357]
[1753061760502,5.79940357,178.57,178.53,42.9]
[1753061760710,11.39726851,178.64,178.52,6.0387]
[1753061760711,5.79940357,178.54,178.52,48.8987]
[1753061760874,16.78468397,178.61,178.52,48.8987]
[1753061761072,5.79940357,178.55,178.52,48.8987]
[1753061761266,5.79940357,178.56,178.52,48.8987]
[1753061761471,5.59890473,178.61,178.52,48.9587]
[1753061761700,5.79940357,178.56,178.52,48.9587]
[1753061761877,5.79940357,178.57,178.52,54.75810357]
[1753061762198,5.79940357,178.57,178.52,48.9587]
[1753061762430,16.78468397,178.61,178.52,48.9587]
[1753061762896,5.79940357,178.55,178.52,48.9587]
[1753061763111,5.79940357,178.54,178.52,48.9587]
[1753061763596,5.79940357,178.53,178.5,42.9]
[1753061764301,5.79940357,178.55,178.5,48.69940357]
[1753061764478,5.79940357,178.56,178.5,48.69940357]
[1753061764679,5.79940357,178.55,178.5,42.9]
[1753061764987,5.79940357,178.54,178.5,42.9]
[1753061765295,5.79940357,178.55,178.5,42.9]
[1753061765797,5.59889208,178.61,178.5,42.9]
[1753061766112,5.79940357,178.54,178.5,42.9]
[1753061766325,5.79940357,178.53,178.5,42.9]
[1753061766628,5.79940357,178.52,178.51,43.06]
[1753061767111,5.79940357,178.53,178.51,43.06]
[1753061767904,16.78468397,178.58,178.51,43.06]
[1753061768098,5.79940357,178.53,178.51,43.06]
[1753061768294,5.79940357,178.54,178.51,43.06]
[1753061768714,5.79940357,178.53,178.51,43.06]
[1753061768915,5.79940357,178.52,178.5,43.08]
[1753061769085,5.79940357,178.53,178.5,43.08]
[1753061769498,5.60005202,178.57,178.5,43.08]
[1753061769701,5.79940357,178.53,178.5,43.08]
[1753061769888,5.79940357,178.54,178.5,43.08]
[1753061770694,22.38350815,178.61,178.5,48.68212551]
[1753061770895,5.79940357,178.57,178.52,5.79940357]
[1753061771129,5.79940357,178.55,178.5,43.08]
[1753061771411,5.79940357,178.55,178.49,119.10250714]
[1753061771412,5.79940357,178.54,178.51,43.06]
[1753061771806,5.79940357,178.55,178.51,43.06]
[1753061772008,5.5991798,178.6,178.51,43.06]
[1753061772193,5.79940357,178.55,178.51,43.06]
[1753061773494,5.79940357,178.55,178.51,48.66189629]
[1753061773696,5.79940357,178.55,178.51,43.06]
[1753061774526,5.59963195,178.59,178.51,43.06]
[1753061774823,16.78468397,178.61,178.51,43.06]
[1753061775123,5.79940357,178.55,178.51,43.06]
[1753061775910,5.79940357,178.55,178.5,87.5]
[1753061775911,5.79940357,178.55,178.52,42.94]
[1753061776215,5.79940357,178.54,178.52,42.94]
[1753061777919,5.79940357,178.54,178.5,87.5]
[1753061778108,5.79940357,178.54,178.51,42.9]
[1753061778515,5.79940357,178.55,178.51,42.9]
[1753061778834,22.38353991,178.61,178.51,42.9]
[1753061779123,5.79940357,178.55,178.51,42.9]
[1753061780009,5.59911684,178.6,178.51,42.9]
[1753061780207,5.79940357,178.55,178.51,42.9]
[1753061780408,5.79940357,178.55,178.51,48.50187866]
[1753061780607,5.79940357,178.55,178.51,42.9]
[1753061780904,5.59911684,178.6,178.52,42.82]
[1753061781116,5.79940357,178.55,178.52,42.82]
[1753061781338,5.79940357,178.54,178.52,42.82]
[1753061782126,5.79940357,178.55,178.52,42.82]
[1753061782698,5.79940357,178.54,178.53,42.8]
[1753061784225,5.79940357,178.55,178.53,42.8]
[1753061784697,5.79940357,178.56,178.53,42.8]
[1753061785517,5.79940357,178.55,178.53,42.8]
[1753061785896,5.79940357,178.56,178.53,42.8]
[1753061786317,5.59886689,178.61,178.53,42.8]
[1753061786624,5.79940357,178.57,178.53,42.8]
[1753061786812,5.79940357,178.56,178.53,42.8]
[1753061787122,5.59886689,178.61,178.53,42.8]
[1753061787329,3.55449666,178.56,178.53,42.8]
[1753061787706,3.55449666,178.55,178.53,42.8]
[1753061787907,22.44316118,178.62,178.53,42.8]
[1753061788110,3.55449666,178.56,178.53,42.8]
[1753061788302,16.78468397,178.61,178.53,42.8]
[1753061788499,3.55449666,178.56,178.53,42.8]
[1753061790528,3.61449666,178.56,178.53,42.8]
[1753061791801,3.55449666,178.54,178.53,42.8]
[1753061792204,3.55449666,178.54,178.53,43.51]
[1753061794330,3.55449666,178.54,178.52,0.03]
[1753061794503,3.55449666,178.53,178.52,0.03]
[1753061794705,20.99918063,178.53,178.48,0.03]
[1753061794935,3.55449666,178.49,178.48,0.03]
[1753061795932,0.66,178.52,178.48,0.03]
[1753061796239,3.55449666,178.5,178.48,0.74]
[1753061796435,3.55449666,178.5,178.48,0.03]
[1753061796740,23.04535605,178.55,178.49,0.71]
[1753061796912,3.55449666,178.5,178.48,0.03]
[1753061797114,3.55449666,178.49,178.48,0.03]
[1753061797814,6.26255476,178.49,178.48,0.03]
[1753061798012,4.21449666,178.49,178.48,0.03]
[1753061798323,16.78468397,178.5,178.48,0.03]
[1753061798531,16.78468397,178.52,178.48,0.03]
[1753061798532,20.33918063,178.49,178.48,0.03]
[1753061798838,42.78468397,178.48,178.38,49.0926]
[1753061799012,16.78468397,178.46,178.39,42.82]
[1753061799215,3.55449666,178.4,178.39,42.82]
[1753061799432,3.55449666,178.4,178.39,43.53]
[1753061800038,3.55449666,178.4,178.35,0.71]
[1753061800227,5.6051185,178.41,178.36,43.55]
[1753061800423,3.55449666,178.37,178.33,6.67277525]
[1753061800634,0.66,178.36,178.33,49.55277525]
[1753061800815,3.55449666,178.34,178.33,49.55277525]
[1753061801015,16.78468397,178.38,178.33,49.55277525]
[1753061801215,3.55449666,178.34,178.33,49.55277525]
[1753061801638,16.78468397,178.36,178.33,49.55277525]
[1753061801825,0.66,178.39,178.33,6.67277525]
[1753061802132,3.55449666,178.35,178.33,50.30277525]
[1753061802332,3.55449666,178.34,178.33,50.30277525]
[1753061802722,3.55449666,178.34,178.33,6.67277525]
[1753061803124,5.8082891,178.34,178.33,6.67277525]
[1753061803420,16.78468397,178.37,178.33,6.67277525]
[1753061803643,5.8082891,178.34,178.33,6.67277525]
[1753061804646,17.48468397,178.37,178.33,6.67277525]
[1753061805021,0.7,178.37,178.33,6.67277525]
[1753061805222,5.6054269,178.4,178.33,7.33277525]
[1753061805223,5.8082891,178.34,178.33,7.33277525]
[1753061805423,5.8082891,178.36,178.33,7.33277525]
[1753061805638,5.8082891,178.36,178.34,0.66]
[1753061805919,16.78468397,178.41,178.35,43.76]
[1753061806131,5.8082891,178.36,178.35,43.08]
[1753061806536,5.8082891,178.36,178.33,6.67277525]
[1753061806736,5.8082891,178.34,178.33,49.83277525]
[1753061807325,5.8082891,178.35,178.33,7.33277525]
[1753061807523,5.8082891,178.35,178.34,43.78]
[1753061807943,0.7,178.41,178.34,43.78]
[1753061808144,6.30419895,178.44,178.35,0.66]
[1753061808524,5.8082891,178.37,178.35,0.66]
[1753061808836,6.5082891,178.42,178.36,0.66]
[1753061809149,6.5082891,178.42,178.37,43.12]
[1753061809452,0.7,178.41,178.37,43.1]
[1753061810033,5.8082891,178.38,178.37,43.1]
[1753061810233,6.30525781,178.41,178.37,43.1]
[1753061810546,5.8082891,178.38,178.37,43.1]
[1753061810744,6.5082891,178.38,178.33,6.67277525]
[1753061810951,5.8082891,178.34,178.33,6.67277525]
[1753061811251,5.8082891,178.34,178.33,49.73277525]
[1753061811461,0.7,178.38,178.33,49.73277525]
[1753061811634,5.8082891,178.34,178.33,6.67277525]
[1753061811948,5.8082891,178.34,178.33,50.37277525]
[1753061812860,16.78468397,178.37,178.33,6.67277525]
[1753061813060,5.8082891,178.34,178.33,6.67277525]
[1753061814449,5.60702508,178.35,178.33,6.67277525]
[1753061814656,5.8082891,178.34,178.33,6.67277525]
[1753061815034,17.48468397,178.34,178.33,6.67277525]
[1753061815250,23.29297307,178.34,178.33,6.67277525]
[1753061815455,5.8082891,178.34,178.33,6.67277525]
[1753061817538,0.67,178.36,178.33,6.67277525]
[1753061817732,0.67,178.39,178.33,6.67277525]
[1753061818060,5.8082891,178.34,178.33,6.67277525]
[1753061818258,12.08555611,178.34,178.33,6.67277525]
[1753061818468,6.4782891,178.34,178.33,6.67277525]
[1753061818639,12.08555611,178.34,178.33,6.67277525]
[1753061820461,5.8082891,178.34,178.33,6.67277525]
[1753061820855,12.08555611,178.34,178.33,6.67277525]
[1753061821170,12.08555611,178.34,178.25,40.3]
[1753061821171,26.0,178.3,178.2,0.66]
[1753061821369,5.8082891,178.22,178.2,43.52]
[1753061821576,5.8082891,178.23,178.22,0.66]
[1753061821743,5.8082891,178.25,178.22,0.66]
[1753061821945,5.8082891,178.31,178.22,0.66]
[1753061822254,0.7,178.32,178.23,5.8082891]
[1753061822570,5.8082891,178.27,178.24,43.48]
[1753061822759,6.30798385,178.32,178.25,0.66]
[1753061822964,5.8082891,178.26,178.25,0.66]
[1753061823182,3.56685896,178.26,178.25,42.88]
[1753061823671,0.7,178.3,178.25,42.88]
[1753061823847,0.7,178.3,178.25,43.54]
[1753061824366,3.56685896,178.26,178.23,43.56]
[1753061824574,9.87569849,178.29,178.23,43.56]
[1753061824575,3.56685896,178.24,178.23,43.56]
[1753061824748,9.87569849,178.29,178.24,0.66]
[1753061824749,3.56685896,178.25,178.24,0.66]
[1753061825669,3.56685896,178.27,178.24,0.66]
[1753061825869,3.56685896,178.26,178.24,0.66]
[1753061826070,4.26685896,178.29,178.25,42.94]
[1753061826260,9.87582414,178.29,178.25,42.94]
[1753061827049,9.17582414,178.29,178.24,43.64]
[1753061827252,3.56685896,178.25,178.24,43.64]
[1753061828053,5.60758145,178.33,178.24,43.64]
[1753061828250,3.56685896,178.29,178.25,0.66]
[1753061828447,3.56685896,178.28,178.25,0.66]
[1753061829174,5.60637704,178.37,178.26,7.6713]
[1753061829355,3.56685896,178.33,178.27,0.66]
[1753061829559,3.56685896,178.32,178.27,4.22685896]
[1753061829867,3.56685896,178.31,178.28,0.66]
[1753061830058,3.56685896,178.32,178.29,42.94]
[1753061830252,3.56685896,178.32,178.3,0.66]
[1753061830460,3.56685896,178.32,178.29,42.94]
[1753061830461,5.60666494,178.36,178.31,0.66]
[1753061830652,5.60666494,178.36,178.29,42.94]
[1753061830852,0.7,178.35,178.29,43.6]
[1753061831073,3.56685896,178.32,178.29,43.6]
[1753061831376,3.56685896,178.32,178.3,0.66]
[1753061831549,5.60664414,178.36,178.31,0.66]
[1753061831750,5.60664414,178.36,178.31,42.92]
[1753061831975,3.56685896,178.32,178.31,42.92]
[1753061832155,3.56685896,178.32,178.31,43.58]
[1753061832550,5.60695609,178.35,178.31,43.58]
[1753061832759,6.30669214,178.36,178.31,43.58]
[1753061832974,3.56685896,178.32,178.31,43.58]
[1753061833348,6.26569538,178.39,178.31,43.58]
[1753061833656,0.66,178.42,178.32,4.27685896]
[1753061833860,0.66,178.42,178.33,0.71]
[1753061833861,3.56685896,178.37,178.33,0.71]
[1753061834273,3.56685896,178.35,178.33,0.71]
[1753061834486,3.56685896,178.36,178.34,0.71]
[1753061834667,6.2648259,178.42,178.35,42.92]
[1753061834980,3.56685896,178.37,178.35,43.63]
[1753061835192,3.56685896,178.37,178.36,0.71]
[1753061836460,3.56685896,178.39,178.36,0.71]
[1753061836783,3.56685896,178.39,178.37,0.71]
[1753061836979,3.56685896,178.39,178.38,0.71]
[1753061837275,3.56685896,178.41,178.38,0.71]
[1753061837650,3.56685896,178.41,178.39,42.86]
[1753061837854,3.56685896,178.41,178.4,0.71]
[1753061838277,3.56685896,178.41,178.39,42.86]
[1753061838476,3.56685896,178.4,178.39,42.86]
[1753061838779,3.56685896,178.4,178.39,42.82]
[1753061839686,3.56685896,178.4,178.39,43.53]
[1753061839879,5.60325997,178.47,178.39,43.53]
[1753061840060,3.56685896,178.43,178.4,0.71]
[1753061840258,3.56685896,178.43,178.41,0.71]
[1753061840464,3.56685896,178.43,178.42,0.71]
[1753061840878,3.56685896,178.47,178.42,0.71]
[1753061841090,32.92934995,178.51,178.39,48.42555311]
[1753061841091,3.56685896,178.46,178.43,0.71]
[1753061841386,3.56685896,178.46,178.44,42.74]
[1753061841581,3.56685896,178.45,178.43,50.7121]
[1753061841784,3.56685896,178.44,178.43,42.76]
[1753061842685,3.56685896,178.44,178.43,43.47]
[1753061843492,3.56685896,178.47,178.43,43.47]
[1753061843668,3.56685896,178.47,178.44,0.71]
[1753061843863,3.56685896,178.47,178.45,0.71]
[1753061844087,3.56685896,178.47,178.46,0.71]
[1753061844878,6.26169285,178.52,178.46,0.71]
[1753061845189,6.26169285,178.52,178.47,42.72]
[1753061845396,3.56685896,178.48,178.47,42.72]
[1753061845765,3.56685896,178.48,178.47,42.7]
[1753061848066,4.22685896,178.48,178.42,0.71]
[1753061848290,3.56685896,178.44,178.43,42.64]
[1753061848798,3.56685896,178.45,178.43,43.35]
[1753061849499,0.66,178.48,178.43,43.35]
[1753061849676,3.56685896,178.46,178.44,0.71]
[1753061849873,5.66200619,178.51,178.44,0.71]
[1753061850206,3.56685896,178.47,178.44,0.71]
[1753061850498,3.56685896,178.48,178.44,0.71]
[1753061850901,3.56685896,178.47,178.45,0.71]
[1753061851083,3.56685896,178.46,178.43,0.71]
[1753061851278,3.56685896,178.46,178.44,43.27]
[1753061851797,3.56685896,178.46,178.45,0.71]
[1753061852385,3.56685896,178.47,178.45,0.71]
[1753061852601,3.56685896,178.48,178.46,0.71]
[1753061852897,0.06,178.51,178.46,0.71]
[1753061853078,3.56685896,178.48,178.46,0.71]
[1753061853620,3.56685896,178.47,178.46,0.71]
[1753061853908,3.56685896,178.47,178.43,87.5]
[1753061854099,3.56685896,178.47,178.46,42.5]
[1753061855177,3.56685896,178.47,178.46,43.21]
[1753061855782,0.72,178.51,178.44,0.71]
[1753061855984,0.06,178.51,178.45,43.17]
[1753061856191,0.06,178.51,178.45,44.7949]
[1753061856391,0.06,178.51,178.47,3.56685896]
[1753061856596,0.06,178.51,178.49,3.56685896]
[1753061856910,0.06,178.51,178.5,42.48]
[1753061857090,3.62685896,178.51,178.5,0.71]
[1753061857282,0.06,178.51,178.48,0.71]
[1753061857488,0.06,178.51,178.5,42.46]
[1753061857693,3.62685896,178.51,178.5,42.46]
[1753061858012,9.22880947,178.51,178.47,87.5]
[1753061858175,3.56685896,178.48,178.46,7.2832]
[1753061858381,3.56685896,178.48,178.47,42.48]
[1753061858795,3.56685896,178.48,178.47,43.19]
[1753061859207,3.56685896,178.48,178.47,0.71]
[1753061859407,3.56685896,178.5,178.47,43.17]
[1753061859592,3.62685896,178.51,178.48,0.71]
[1753061860082,0.06,178.51,178.48,0.71]
[1753061860910,0.06,178.51,178.48,4.27685896]
[1753061861210,0.06,178.51,178.49,0.71]
[1753061861403,0.06,178.51,178.5,42.42]
[1753061861782,0.06,178.51,178.5,43.13]